[Event "Titled Tuesday Blitz July 26 Late 2022"]
[White "Deviprasath, Sharvesh"]
[Black "Pinheiro, Iung Alicio de O."]
[WhiteFideId "30938228"]
[BlackFideId "2104350"]
[WhiteElo "2102"]
[BlackElo "2283"]
[Result "0-1"]
[Round "08"]
[TimeControl "180+1"]
[Date "2022.07.26"]
[WhiteClock "0:00:29"]
[BlackClock "0:00:05"]

1. Nf3 {[%clk 0:02:10]}  d5 {[%clk 0:02:58]} 2. c4 {[%clk 0:02:11]}  c6 {[%clk 0:02:55]} 3. e3 {[%clk 0:02:11]}  Nf6 {[%clk 0:02:54]} 4. Nc3 {[%clk 0:02:12]}  g6 {[%clk 0:02:54]} 5. d4 {[%clk 0:02:13]}  Bg7 {[%clk 0:02:54]} 6. Bd3 {[%clk 0:02:14]}  O-O {[%clk 0:02:54]} 7. O-O {[%clk 0:02:15]}  Bg4 {[%clk 0:02:54]} 8. h3 {[%clk 0:02:16]}  Bxf3 {[%clk 0:02:54]} 9. Qxf3 {[%clk 0:02:17]}  e6 {[%clk 0:02:54]} 10. b3 {[%clk 0:02:17]}  Nbd7 {[%clk 0:02:54]} 11. a4 {[%clk 0:02:16]}  Re8 {[%clk 0:02:53]} 12. Qe2 {[%clk 0:02:16]}  e5 {[%clk 0:02:37]} 13. cxd5 {[%clk 0:02:13]}  exd4 {[%clk 0:02:25]} 14. dxc6 {[%clk 0:02:13]}  bxc6 {[%clk 0:02:20]} 15. Nd1 {[%clk 0:02:13]}  dxe3 {[%clk 0:02:04]} 16. Nxe3 {[%clk 0:02:14]}  Nd5 {[%clk 0:02:03]} 17. Bd2 {[%clk 0:02:06]}  Nc5 {[%clk 0:01:56]} 18. Bc4 {[%clk 0:02:06]}  Nf4 {[%clk 0:01:50]} 19. Qf3 {[%clk 0:02:01]}  Bxa1 {[%clk 0:01:35]} 20. Qxf4 {[%clk 0:01:55]}  Ne6 {[%clk 0:01:22]} 21. Bxe6 {[%clk 0:01:49]}  Rxe6 {[%clk 0:01:23]} 22. Rxa1 {[%clk 0:01:46]}  Qxd2 {[%clk 0:01:22]} 23. Qc4 {[%clk 0:01:47]}  Qa5 {[%clk 0:01:11]} 24. Ng4 {[%clk 0:01:47]}  h5 {[%clk 0:01:07]} 25. Ne3 {[%clk 0:01:47]}  Rd8 {[%clk 0:01:06]} 26. Rc1 {[%clk 0:01:46]}  Qe5 {[%clk 0:00:56]} 27. Qc5 {[%clk 0:01:44]}  Qxc5 {[%clk 0:00:48]} 28. Rxc5 {[%clk 0:01:45]}  Rd3 {[%clk 0:00:49]} 29. Ra5 {[%clk 0:01:42]}  Rxb3 {[%clk 0:00:47]} 30. Rxa7 {[%clk 0:01:42]}  Ra3 {[%clk 0:00:46]} 31. a5 {[%clk 0:01:42]}  c5 {[%clk 0:00:46]} 32. Nc4 {[%clk 0:01:38]}  Ra1+ {[%clk 0:00:45]} 33. Kh2 {[%clk 0:01:38]}  h4 {[%clk 0:00:46]} 34. Rc7 {[%clk 0:01:32]}  Ree1 {[%clk 0:00:35]} 35. g3 {[%clk 0:01:30]}  Rh1+ {[%clk 0:00:31]} 36. Kg2 {[%clk 0:01:31]}  Rag1+ {[%clk 0:00:31]} 37. Kf3 {[%clk 0:01:31]}  hxg3 {[%clk 0:00:32]} 38. fxg3 {[%clk 0:01:32]}  Rxh3 {[%clk 0:00:32]} 39. Ke4 {[%clk 0:00:36]}  Rhxg3 {[%clk 0:00:28]} 40. a6 {[%clk 0:00:22]}  Ra1 {[%clk 0:00:21]} 41. a7 {[%clk 0:00:22]}  Kg7 {[%clk 0:00:21]} 42. Ne5 {[%clk 0:00:19]}  Rga3 {[%clk 0:00:19]} 43. Rxf7+ {[%clk 0:00:16]}  Kg8 {[%clk 0:00:19]} 44. Rf6 {[%clk 0:00:14]}  Rxa7 {[%clk 0:00:19]} 45. Rxg6+ {[%clk 0:00:15]}  Kh7 {[%clk 0:00:19]} 46. Rc6 {[%clk 0:00:14]}  Rc1 {[%clk 0:00:19]} 47. Kd5 {[%clk 0:00:13]}  Ra2 {[%clk 0:00:16]} 48. Rxc5 {[%clk 0:00:11]}  Rd2+ {[%clk 0:00:16]} 49. Kc6 {[%clk 0:00:12]}  Rxc5+ {[%clk 0:00:13]} 50. Kxc5 {[%clk 0:00:13]}  Kg7 {[%clk 0:00:13]} 51. Nc4 {[%clk 0:00:13]}  Rd8 {[%clk 0:00:13]} 52. Kb5 {[%clk 0:00:13]}  Kf6 {[%clk 0:00:13]} 53. Nb6 {[%clk 0:00:14]}  Ke6 {[%clk 0:00:13]} 54. Nc4 {[%clk 0:00:15]}  Rd4 {[%clk 0:00:13]} 55. Nb6 {[%clk 0:00:16]}  Kd6 {[%clk 0:00:12]} 56. Nc4+ {[%clk 0:00:16]}  Kc7 {[%clk 0:00:12]} 57. Kc5 {[%clk 0:00:17]}  Rh4 {[%clk 0:00:12]} 58. Kd5 {[%clk 0:00:17]}  Rh5+ {[%clk 0:00:13]} 59. Ne5 {[%clk 0:00:18]}  Kd8 {[%clk 0:00:13]} 60. Ke6 {[%clk 0:00:17]}  Rh1 {[%clk 0:00:14]} 61. Kd5 {[%clk 0:00:17]}  Ke8 {[%clk 0:00:14]} 62. Ke6 {[%clk 0:00:18]}  Kf8 {[%clk 0:00:15]} 63. Kf5 {[%clk 0:00:19]}  Ke7 {[%clk 0:00:16]} 64. Ng6+ {[%clk 0:00:19]}  Kd6 {[%clk 0:00:16]} 65. Nf4 {[%clk 0:00:20]}  Rf1 {[%clk 0:00:16]} 66. Ke4 {[%clk 0:00:21]}  Ra1 {[%clk 0:00:15]} 67. Nd3 {[%clk 0:00:21]}  Ra4+ {[%clk 0:00:15]} 68. Ke3 {[%clk 0:00:22]}  Kd5 {[%clk 0:00:15]} 69. Nf4+ {[%clk 0:00:23]}  Ke5 {[%clk 0:00:15]} 70. Nd3+ {[%clk 0:00:23]}  Kf5 {[%clk 0:00:16]} 71. Nc5 {[%clk 0:00:23]}  Rc4 {[%clk 0:00:15]} 72. Nd3 {[%clk 0:00:23]}  Rc3 {[%clk 0:00:15]} 73. Kd4 {[%clk 0:00:24]}  Ra3 {[%clk 0:00:15]} 74. Nc5 {[%clk 0:00:24]}  Ra1 {[%clk 0:00:15]} 75. Kd5 {[%clk 0:00:24]}  Rd1+ {[%clk 0:00:14]} 76. Kc4 {[%clk 0:00:25]}  Ke5 {[%clk 0:00:13]} 77. Nd3+ {[%clk 0:00:25]}  Kd6 {[%clk 0:00:12]} 78. Kd4 {[%clk 0:00:25]}  Ra1 {[%clk 0:00:12]} 79. Ke4 {[%clk 0:00:24]}  Ra4+ {[%clk 0:00:12]} 80. Ke3 {[%clk 0:00:25]}  Kd5 {[%clk 0:00:12]} 81. Nf4+ {[%clk 0:00:26]}  Kc4 {[%clk 0:00:13]} 82. Ke4 {[%clk 0:00:26]}  Ra8 {[%clk 0:00:12]} 83. Kf5 {[%clk 0:00:26]}  Re8 {[%clk 0:00:11]} 84. Ne6 {[%clk 0:00:26]}  Re7 {[%clk 0:00:08]} 85. Ke5 {[%clk 0:00:26]}  Rh7 {[%clk 0:00:07]} 86. Kd6 {[%clk 0:00:26]}  Rh1 {[%clk 0:00:07]} 87. Ke5 {[%clk 0:00:27]}  Rh5+ {[%clk 0:00:07]} 88. Kf6 {[%clk 0:00:27]}  Ra5 {[%clk 0:00:06]} 89. Ke7 {[%clk 0:00:28]}  Kd5 {[%clk 0:00:05]} 90. Kf6 {[%clk 0:00:29]}  Ra6 {[%clk 0:00:05]} 0-1


[Site "https://www.chess.com"]

[Event "Titled Tuesday Blitz July 26 Late 2022"]
[White "Djordjevic, Vuk"]
[Black "Vagman, Roy"]
[WhiteFideId "902098"]
[BlackFideId "2828995"]
[WhiteElo "2456"]
[BlackElo "1956"]
[Result "0-1"]
[Round "08"]
[TimeControl "180+1"]
[Date "2022.07.26"]
[WhiteClock "0:00:04"]
[BlackClock "0:00:06"]

1. d4 {[%clk 0:03:00]}  Nf6 {[%clk 0:02:59]} 2. Bg5 {[%clk 0:03:01]}  d5 {[%clk 0:02:56]} 3. Bxf6 {[%clk 0:03:01]}  gxf6 {[%clk 0:02:56]} 4. e3 {[%clk 0:03:01]}  c5 {[%clk 0:02:54]} 5. dxc5 {[%clk 0:03:02]}  e6 {[%clk 0:02:50]} 6. Nf3 {[%clk 0:03:00]}  Bxc5 {[%clk 0:02:49]} 7. c4 {[%clk 0:02:58]}  dxc4 {[%clk 0:02:44]} 8. Nbd2 {[%clk 0:02:58]}  Nc6 {[%clk 0:02:41]} 9. Bxc4 {[%clk 0:02:57]}  f5 {[%clk 0:02:25]} 10. O-O {[%clk 0:02:57]}  O-O {[%clk 0:02:20]} 11. a3 {[%clk 0:02:52]}  Be7 {[%clk 0:02:17]} 12. b4 {[%clk 0:02:48]}  Bf6 {[%clk 0:02:17]} 13. Rb1 {[%clk 0:02:45]}  b6 {[%clk 0:02:06]} 14. Qb3 {[%clk 0:02:41]}  Bb7 {[%clk 0:02:04]} 15. Rfd1 {[%clk 0:02:39]}  Qe7 {[%clk 0:02:04]} 16. e4 {[%clk 0:02:39]}  f4 {[%clk 0:01:55]} 17. Qa4 {[%clk 0:02:37]}  Kh8 {[%clk 0:01:49]} 18. Bb5 {[%clk 0:02:28]}  Rac8 {[%clk 0:01:23]} 19. Rbc1 {[%clk 0:02:28]}  Nd4 {[%clk 0:01:00]} 20. Nxd4 {[%clk 0:02:28]}  Rxc1 {[%clk 0:00:57]} 21. Rxc1 {[%clk 0:02:28]}  Bxd4 {[%clk 0:00:58]} 22. Qxa7 {[%clk 0:02:11]}  Ra8 {[%clk 0:00:55]} 23. Qxa8+ {[%clk 0:02:06]}  Bxa8 {[%clk 0:00:55]} 24. Nf3 {[%clk 0:02:00]}  Qd8 {[%clk 0:00:40]} 25. Nxd4 {[%clk 0:01:55]}  Qxd4 {[%clk 0:00:40]} 26. Rc8+ {[%clk 0:01:54]}  Kg7 {[%clk 0:00:41]} 27. Rxa8 {[%clk 0:01:54]}  Qxe4 {[%clk 0:00:41]} 28. Ra6 {[%clk 0:01:43]}  Qd4 {[%clk 0:00:39]} 29. Bf1 {[%clk 0:01:32]}  e5 {[%clk 0:00:39]} 30. Ra7 {[%clk 0:01:26]}  e4 {[%clk 0:00:37]} 31. Re7 {[%clk 0:01:16]}  e3 {[%clk 0:00:36]} 32. g3 {[%clk 0:01:04]}  Qd2 {[%clk 0:00:23]} 33. fxe3 {[%clk 0:00:57]}  fxe3 {[%clk 0:00:24]} 34. Bb5 {[%clk 0:00:46]}  Qf2+ {[%clk 0:00:15]} 35. Kh1 {[%clk 0:00:46]}  h5 {[%clk 0:00:13]} 36. a4 {[%clk 0:00:25]}  Kf6 {[%clk 0:00:13]} 37. Re8 {[%clk 0:00:20]}  h4 {[%clk 0:00:13]} 38. gxh4 {[%clk 0:00:20]}  Qe1+ {[%clk 0:00:12]} 39. Kg2 {[%clk 0:00:19]}  Qf2+ {[%clk 0:00:12]} 40. Kh1 {[%clk 0:00:19]}  Kf5 {[%clk 0:00:10]} 41. Re7 {[%clk 0:00:14]}  Kg4 {[%clk 0:00:09]} 42. Bd7+ {[%clk 0:00:13]}  Kxh4 {[%clk 0:00:07]} 43. Bb5 {[%clk 0:00:10]}  Kh3 {[%clk 0:00:06]} 44. Bd7+ {[%clk 0:00:09]}  f5 {[%clk 0:00:06]} 45. Bxf5+ {[%clk 0:00:06]}  Qxf5 {[%clk 0:00:06]} 46. Rxe3+ {[%clk 0:00:06]}  Kh4 {[%clk 0:00:06]} 47. a5 {[%clk 0:00:04]}  Qf1# {[%clk 0:00:06]} 0-1


[Site "https://www.chess.com"]

[Event "Titled Tuesday Blitz July 26 Late 2022"]
[White "Fishbein, Alexander"]
[Black "Karas, Marek"]
[WhiteFideId "2000377"]
[BlackFideId "14928558"]
[WhiteElo "2410"]
[BlackElo "2250"]
[Result "1/2-1/2"]
[Round "08"]
[TimeControl "180+1"]
[Date "2022.07.26"]
[WhiteClock "0:00:03"]
[BlackClock "0:00:22"]

1. Nf3 {[%clk 0:03:00]}  Nf6 {[%clk 0:02:59]} 2. c4 {[%clk 0:03:00]}  e6 {[%clk 0:02:58]} 3. g3 {[%clk 0:02:59]}  d5 {[%clk 0:02:57]} 4. b3 {[%clk 0:02:59]}  Be7 {[%clk 0:02:57]} 5. Bg2 {[%clk 0:02:59]}  O-O {[%clk 0:02:58]} 6. O-O {[%clk 0:03:00]}  c6 {[%clk 0:02:58]} 7. Ba3 {[%clk 0:02:58]}  Bxa3 {[%clk 0:02:55]} 8. Nxa3 {[%clk 0:02:58]}  Nbd7 {[%clk 0:02:55]} 9. Qc1 {[%clk 0:02:58]}  Qe7 {[%clk 0:02:53]} 10. d3 {[%clk 0:02:58]}  e5 {[%clk 0:02:47]} 11. cxd5 {[%clk 0:02:52]}  cxd5 {[%clk 0:02:48]} 12. Nb5 {[%clk 0:02:47]}  Nb6 {[%clk 0:02:46]} 13. Qc7 {[%clk 0:02:44]}  Bd7 {[%clk 0:02:39]} 14. Nxe5 {[%clk 0:02:02]}  Ne8 {[%clk 0:02:23]} 15. Qxb7 {[%clk 0:01:52]}  Qxe5 {[%clk 0:02:19]} 16. a4 {[%clk 0:01:35]}  Bxb5 {[%clk 0:02:16]} 17. axb5 {[%clk 0:01:34]}  Nd6 {[%clk 0:02:15]} 18. Qa6 {[%clk 0:01:27]}  Qxe2 {[%clk 0:02:13]} 19. Qa3 {[%clk 0:01:21]}  Nxb5 {[%clk 0:02:08]} 20. Qc5 {[%clk 0:01:20]}  Qxd3 {[%clk 0:01:53]} 21. Rfd1 {[%clk 0:01:16]}  Qxb3 {[%clk 0:01:51]} 22. Rab1 {[%clk 0:01:10]}  Qc4 {[%clk 0:01:49]} 23. Qxc4 {[%clk 0:00:56]}  dxc4 {[%clk 0:01:42]} 24. Rxb5 {[%clk 0:00:53]}  Rad8 {[%clk 0:01:39]} 25. Rc1 {[%clk 0:00:50]}  g6 {[%clk 0:01:38]} 26. Ra5 {[%clk 0:00:49]}  Rd7 {[%clk 0:01:37]} 27. Bf1 {[%clk 0:00:49]}  Rc7 {[%clk 0:01:36]} 28. Ra3 {[%clk 0:00:35]}  Rfc8 {[%clk 0:01:34]} 29. Rac3 {[%clk 0:00:34]}  Nd5 {[%clk 0:01:25]} 30. Rxc4 {[%clk 0:00:32]}  Rxc4 {[%clk 0:01:25]} 31. Rxc4 {[%clk 0:00:27]}  Rxc4 {[%clk 0:01:25]} 32. Bxc4 {[%clk 0:00:28]}  Nb6 {[%clk 0:01:22]} 33. Ba6 {[%clk 0:00:28]}  Kg7 {[%clk 0:01:22]} 34. f4 {[%clk 0:00:28]}  Kf6 {[%clk 0:01:22]} 35. Kf2 {[%clk 0:00:28]}  Ke6 {[%clk 0:01:21]} 36. Ke3 {[%clk 0:00:27]}  Kd5 {[%clk 0:01:22]} 37. Kd3 {[%clk 0:00:25]}  f6 {[%clk 0:01:19]} 38. h4 {[%clk 0:00:24]}  Nd7 {[%clk 0:01:16]} 39. Bc4+ {[%clk 0:00:23]}  Kc5 {[%clk 0:01:15]} 40. Bg8 {[%clk 0:00:22]}  h6 {[%clk 0:01:15]} 41. Bf7 {[%clk 0:00:22]}  g5 {[%clk 0:01:14]} 42. Ke4 {[%clk 0:00:22]}  gxh4 {[%clk 0:01:08]} 43. gxh4 {[%clk 0:00:21]}  Kd6 {[%clk 0:01:06]} 44. Kf5 {[%clk 0:00:21]}  Ke7 {[%clk 0:01:06]} 45. Bg8 {[%clk 0:00:18]}  Nf8 {[%clk 0:01:06]} 46. Bb3 {[%clk 0:00:12]}  a5 {[%clk 0:01:06]} 47. h5 {[%clk 0:00:10]}  a4 {[%clk 0:00:50]} 48. Bxa4 {[%clk 0:00:10]}  Kf7 {[%clk 0:00:50]} 49. Bb3+ {[%clk 0:00:07]}  Kg7 {[%clk 0:00:50]} 50. Be6 {[%clk 0:00:07]}  Nh7 {[%clk 0:00:49]} 51. Bc8 {[%clk 0:00:07]}  Nf8 {[%clk 0:00:49]} 52. Be6 {[%clk 0:00:06]}  Nh7 {[%clk 0:00:49]} 53. Bd5 {[%clk 0:00:06]}  Nf8 {[%clk 0:00:47]} 54. Bc6 {[%clk 0:00:06]}  Kf7 {[%clk 0:00:44]} 55. Bd5+ {[%clk 0:00:06]}  Kg7 {[%clk 0:00:45]} 56. Bc4 {[%clk 0:00:06]}  Nd7 {[%clk 0:00:42]} 57. Bb5 {[%clk 0:00:06]}  Nc5 {[%clk 0:00:41]} 58. Bc4 {[%clk 0:00:06]}  Nd7 {[%clk 0:00:35]} 59. Bb5 {[%clk 0:00:05]}  Nb6 {[%clk 0:00:32]} 60. Ke6 {[%clk 0:00:06]}  Nc8 {[%clk 0:00:23]} 61. Kd7 {[%clk 0:00:06]}  Nb6+ {[%clk 0:00:22]} 62. Kd6 {[%clk 0:00:05]}  Nc8+ {[%clk 0:00:21]} 63. Ke6 {[%clk 0:00:04]}  Nb6 {[%clk 0:00:21]} 64. Kd6 {[%clk 0:00:04]}  Nc8+ {[%clk 0:00:21]} 65. Kd7 {[%clk 0:00:04]}  Nb6+ {[%clk 0:00:21]} 66. Kc6 {[%clk 0:00:05]}  Nc8 {[%clk 0:00:22]} 67. Kd7 {[%clk 0:00:03]} 1/2-1/2


[Site "https://www.chess.com"]

[Event "Titled Tuesday Blitz July 26 Late 2022"]
[White "Hafiz, Arif Abdul"]
[Black "Bortnyk, Olexandr"]
[WhiteFideId "7104227"]
[BlackFideId "14120828"]
[WhiteElo "2198"]
[BlackElo "2723"]
[Result "0-1"]
[Round "08"]
[TimeControl "180+1"]
[Date "2022.07.26"]
[WhiteClock "0:00:10"]
[BlackClock "0:00:34"]

1. e4 {[%clk 0:03:00]}  d6 {[%clk 0:02:52]} 2. d4 {[%clk 0:03:01]}  Nf6 {[%clk 0:02:53]} 3. Nc3 {[%clk 0:03:01]}  Nbd7 {[%clk 0:02:54]} 4. Nf3 {[%clk 0:03:01]}  e5 {[%clk 0:02:55]} 5. Be3 {[%clk 0:03:00]}  Be7 {[%clk 0:02:55]} 6. Bc4 {[%clk 0:02:59]}  c6 {[%clk 0:02:55]} 7. O-O {[%clk 0:02:59]}  h6 {[%clk 0:02:55]} 8. a4 {[%clk 0:02:58]}  Qc7 {[%clk 0:02:55]} 9. h3 {[%clk 0:02:57]}  g5 {[%clk 0:02:56]} 10. Nd2 {[%clk 0:02:38]}  Nf8 {[%clk 0:02:53]} 11. d5 {[%clk 0:02:35]}  Ng6 {[%clk 0:02:49]} 12. a5 {[%clk 0:02:24]}  Nh4 {[%clk 0:02:48]} 13. g3 {[%clk 0:02:13]}  Ng6 {[%clk 0:02:22]} 14. Kg2 {[%clk 0:02:07]}  Rg8 {[%clk 0:02:20]} 15. a6 {[%clk 0:02:00]}  b5 {[%clk 0:02:19]} 16. Bd3 {[%clk 0:01:55]}  b4 {[%clk 0:02:19]} 17. Ne2 {[%clk 0:01:55]}  cxd5 {[%clk 0:02:19]} 18. Bb5+ {[%clk 0:01:46]}  Bd7 {[%clk 0:02:12]} 19. Bxd7+ {[%clk 0:01:45]}  Qxd7 {[%clk 0:02:13]} 20. exd5 {[%clk 0:01:44]}  Nxd5 {[%clk 0:02:14]} 21. Kh2 {[%clk 0:01:35]}  f5 {[%clk 0:02:10]} 22. Nc4 {[%clk 0:01:33]}  Nf6 {[%clk 0:02:07]} 23. Ng1 {[%clk 0:01:26]}  f4 {[%clk 0:02:06]} 24. Bd2 {[%clk 0:01:26]}  d5 {[%clk 0:01:56]} 25. Na5 {[%clk 0:01:20]}  g4 {[%clk 0:01:52]} 26. Qe1 {[%clk 0:01:05]}  gxh3 {[%clk 0:01:51]} 27. Bxb4 {[%clk 0:01:02]}  d4 {[%clk 0:01:34]} 28. Bxe7 {[%clk 0:00:57]}  Qd5 {[%clk 0:01:32]} 29. f3 {[%clk 0:00:50]}  fxg3+ {[%clk 0:01:32]} 30. Qxg3 {[%clk 0:00:48]}  Nf4 {[%clk 0:01:22]} 31. Qh4 {[%clk 0:00:35]}  Rg2+ {[%clk 0:01:18]} 32. Kh1 {[%clk 0:00:35]}  Qg8 {[%clk 0:01:11]} 33. Rf2 {[%clk 0:00:28]}  Kxe7 {[%clk 0:01:11]} 34. Nc6+ {[%clk 0:00:27]}  Ke6 {[%clk 0:01:06]} 35. Re1 {[%clk 0:00:26]}  Rxf2 {[%clk 0:01:03]} 36. Qxf2 {[%clk 0:00:27]}  Qg2+ {[%clk 0:00:59]} 37. Qxg2 {[%clk 0:00:27]}  hxg2+ {[%clk 0:01:00]} 38. Kh2 {[%clk 0:00:28]}  Kd5 {[%clk 0:00:58]} 39. Nxe5 {[%clk 0:00:26]}  Rb8 {[%clk 0:00:33]} 40. b3 {[%clk 0:00:25]}  Re8 {[%clk 0:00:30]} 41. Nd3 {[%clk 0:00:25]}  Nxd3 {[%clk 0:00:30]} 42. Rxe8 {[%clk 0:00:24]}  Nxe8 {[%clk 0:00:31]} 43. cxd3 {[%clk 0:00:24]}  Nc7 {[%clk 0:00:32]} 44. Kxg2 {[%clk 0:00:20]}  Nxa6 {[%clk 0:00:33]} 45. Ne2 {[%clk 0:00:19]}  Nc5 {[%clk 0:00:33]} 46. Nc1 {[%clk 0:00:18]}  a5 {[%clk 0:00:33]} 47. f4 {[%clk 0:00:19]}  Ke6 {[%clk 0:00:32]} 48. Kf3 {[%clk 0:00:19]}  Kf5 {[%clk 0:00:33]} 49. Kg3 {[%clk 0:00:19]}  h5 {[%clk 0:00:34]} 50. Kf3 {[%clk 0:00:19]}  h4 {[%clk 0:00:34]} 51. b4 {[%clk 0:00:09]}  axb4 {[%clk 0:00:35]} 52. Na2 {[%clk 0:00:10]}  b3 {[%clk 0:00:34]} 53. Nb4 {[%clk 0:00:10]}  b2 {[%clk 0:00:34]} 0-1


[Site "https://www.chess.com"]

[Event "Titled Tuesday Blitz July 26 Late 2022"]
[White "Horcajuelo Rocamora, Martin"]
[Black "Voege, Tobias"]
[WhiteFideId "24573027"]
[BlackFideId "1270513"]
[WhiteElo "1882"]
[BlackElo "2379"]
[Result "0-1"]
[Round "08"]
[TimeControl "180+1"]
[Date "2022.07.27"]
[WhiteClock "0:00:01"]
[BlackClock "0:00:09"]

1. e4 {[%clk 0:01:04]}  e6 {[%clk 0:02:57]} 2. d4 {[%clk 0:01:00]}  d5 {[%clk 0:02:57]} 3. exd5 {[%clk 0:01:01]}  exd5 {[%clk 0:02:57]} 4. Bd3 {[%clk 0:01:01]}  c5 {[%clk 0:02:57]} 5. dxc5 {[%clk 0:00:43]}  Nc6 {[%clk 0:02:56]} 6. Nf3 {[%clk 0:00:44]}  Bxc5 {[%clk 0:02:55]} 7. O-O {[%clk 0:00:45]}  Nge7 {[%clk 0:02:53]} 8. c3 {[%clk 0:00:44]}  Bg4 {[%clk 0:02:48]} 9. Re1 {[%clk 0:00:42]}  Qd7 {[%clk 0:02:44]} 10. Bf4 {[%clk 0:00:36]}  O-O {[%clk 0:02:41]} 11. Nbd2 {[%clk 0:00:34]}  Ng6 {[%clk 0:02:33]} 12. Bg3 {[%clk 0:00:31]}  Rfe8 {[%clk 0:02:33]} 13. Qc2 {[%clk 0:00:30]}  Rac8 {[%clk 0:02:30]} 14. a3 {[%clk 0:00:25]}  a6 {[%clk 0:02:20]} 15. h3 {[%clk 0:00:18]}  Be6 {[%clk 0:02:15]} 16. Ng5 {[%clk 0:00:17]}  Nd8 {[%clk 0:02:05]} 17. Nxe6 {[%clk 0:00:15]}  Nxe6 {[%clk 0:02:02]} 18. Bf5 {[%clk 0:00:16]}  d4 {[%clk 0:01:59]} 19. cxd4 {[%clk 0:00:14]}  Bxd4 {[%clk 0:01:53]} 20. Qd3 {[%clk 0:00:14]}  Qb5 {[%clk 0:01:42]} 21. Qxb5 {[%clk 0:00:14]}  axb5 {[%clk 0:01:43]} 22. Nf3 {[%clk 0:00:14]}  Bxb2 {[%clk 0:01:40]} 23. Rab1 {[%clk 0:00:14]}  Bc3 {[%clk 0:01:30]} 24. Rec1 {[%clk 0:00:14]}  Rc5 {[%clk 0:01:21]} 25. Bd3 {[%clk 0:00:11]}  b4 {[%clk 0:01:21]} 26. axb4 {[%clk 0:00:10]}  Bxb4 {[%clk 0:01:20]} 27. Rxc5 {[%clk 0:00:11]}  Bxc5 {[%clk 0:01:17]} 28. Rxb7 {[%clk 0:00:11]}  h6 {[%clk 0:01:04]} 29. Bb5 {[%clk 0:00:11]}  Rd8 {[%clk 0:01:02]} 30. Bc4 {[%clk 0:00:12]}  Re8 {[%clk 0:00:46]} 31. Kh2 {[%clk 0:00:11]}  Re7 {[%clk 0:00:42]} 32. Rb8+ {[%clk 0:00:11]}  Kh7 {[%clk 0:00:42]} 33. Bd3 {[%clk 0:00:10]}  Nd4 {[%clk 0:00:38]} 34. Nxd4 {[%clk 0:00:09]}  Bxd4 {[%clk 0:00:38]} 35. h4 {[%clk 0:00:10]}  h5 {[%clk 0:00:36]} 36. Rb5 {[%clk 0:00:09]}  Kh6 {[%clk 0:00:34]} 37. Rg5 {[%clk 0:00:09]}  Bf6 {[%clk 0:00:32]} 38. Rf5 {[%clk 0:00:08]}  Bxh4 {[%clk 0:00:26]} 39. Bxh4 {[%clk 0:00:03]}  Nxh4 {[%clk 0:00:27]} 40. Rf4 {[%clk 0:00:03]}  Ng6 {[%clk 0:00:24]} 41. Ra4 {[%clk 0:00:03]}  Re6 {[%clk 0:00:23]} 42. f3 {[%clk 0:00:02]}  Ne5 {[%clk 0:00:20]} 43. Be4 {[%clk 0:00:03]}  g6 {[%clk 0:00:19]} 44. Ra5 {[%clk 0:00:03]}  f5 {[%clk 0:00:19]} 45. Bd5 {[%clk 0:00:04]}  Rd6 {[%clk 0:00:19]} 46. Bb3 {[%clk 0:00:02]}  Nd3 {[%clk 0:00:19]} 47. Rd5 {[%clk 0:00:02]}  Rxd5 {[%clk 0:00:17]} 48. Bxd5 {[%clk 0:00:03]}  Kg5 {[%clk 0:00:18]} 49. Bc4 {[%clk 0:00:04]}  Ne5 {[%clk 0:00:17]} 50. Bf1 {[%clk 0:00:03]}  Kf4 {[%clk 0:00:17]} 51. Kh3 {[%clk 0:00:04]}  g5 {[%clk 0:00:17]} 52. Bb5 {[%clk 0:00:03]}  h4 {[%clk 0:00:17]} 53. Be8 {[%clk 0:00:02]}  Nc4 {[%clk 0:00:16]} 54. Bb5 {[%clk 0:00:02]}  Ne3 {[%clk 0:00:16]} 55. Be2 {[%clk 0:00:02]}  Nc2 {[%clk 0:00:14]} 56. Bd3 {[%clk 0:00:02]}  Nb4 {[%clk 0:00:13]} 57. Bc4 {[%clk 0:00:02]}  Nc6 {[%clk 0:00:13]} 58. Bg8 {[%clk 0:00:03]}  Nd4 {[%clk 0:00:12]} 59. Bd5 {[%clk 0:00:03]}  Nc2 {[%clk 0:00:11]} 60. Bb3 {[%clk 0:00:03]}  Ne3 {[%clk 0:00:11]} 61. Ba4 {[%clk 0:00:03]}  Nc4 {[%clk 0:00:10]} 62. Bc6 {[%clk 0:00:02]}  Ne3 {[%clk 0:00:08]} 63. Bb7 {[%clk 0:00:02]}  Nf1 {[%clk 0:00:09]} 64. Bc6 {[%clk 0:00:02]}  Ke5 {[%clk 0:00:08]} 65. Bb7 {[%clk 0:00:02]}  Ng3 {[%clk 0:00:09]} 66. Bc6 {[%clk 0:00:01]}  Kd4 {[%clk 0:00:09]} 0-1


[Site "https://www.chess.com"]

[Event "Titled Tuesday Blitz July 26 Late 2022"]
[White "Howell, David W L"]
[Black "Matinian, Nikita"]
[WhiteFideId "410608"]
[BlackFideId "24129100"]
[WhiteElo "2559"]
[BlackElo "2422"]
[Result "1-0"]
[Round "08"]
[TimeControl "180+1"]
[Date "2022.07.26"]
[WhiteClock "0:00:08"]
[BlackClock "0:00:01"]

1. e4 {[%clk 0:02:54]}  c5 {[%clk 0:02:59]} 2. Nf3 {[%clk 0:02:51]}  d6 {[%clk 0:02:59]} 3. d4 {[%clk 0:02:49]}  cxd4 {[%clk 0:03:00]} 4. Nxd4 {[%clk 0:02:50]}  Nf6 {[%clk 0:03:00]} 5. Nc3 {[%clk 0:02:50]}  g6 {[%clk 0:03:01]} 6. g3 {[%clk 0:02:50]}  Bg7 {[%clk 0:03:01]} 7. Bg2 {[%clk 0:02:50]}  O-O {[%clk 0:03:01]} 8. O-O {[%clk 0:02:49]}  Nc6 {[%clk 0:03:01]} 9. Nde2 {[%clk 0:02:48]}  Rb8 {[%clk 0:03:00]} 10. a4 {[%clk 0:02:46]}  a6 {[%clk 0:02:59]} 11. h3 {[%clk 0:02:44]}  b5 {[%clk 0:02:59]} 12. axb5 {[%clk 0:02:43]}  axb5 {[%clk 0:03:00]} 13. Re1 {[%clk 0:02:44]}  b4 {[%clk 0:03:00]} 14. Nd5 {[%clk 0:02:43]}  e6 {[%clk 0:02:48]} 15. Nxf6+ {[%clk 0:02:17]}  Bxf6 {[%clk 0:02:48]} 16. Bh6 {[%clk 0:02:13]}  Re8 {[%clk 0:02:44]} 17. Ra2 {[%clk 0:02:02]}  Qc7 {[%clk 0:02:17]} 18. Qd2 {[%clk 0:01:54]}  Ne5 {[%clk 0:02:08]} 19. b3 {[%clk 0:01:51]}  Rb6 {[%clk 0:01:59]} 20. Kh2 {[%clk 0:01:46]}  Bb7 {[%clk 0:01:56]} 21. Rd1 {[%clk 0:01:39]}  d5 {[%clk 0:01:52]} 22. exd5 {[%clk 0:01:34]}  exd5 {[%clk 0:01:52]} 23. Nf4 {[%clk 0:01:30]}  d4 {[%clk 0:01:50]} 24. Ra7 {[%clk 0:01:06]}  Qb8 {[%clk 0:01:38]} 25. Rxb7 {[%clk 0:01:05]}  Rxb7 {[%clk 0:01:38]} 26. Nd5 {[%clk 0:01:06]}  Bh8 {[%clk 0:01:24]} 27. Qf4 {[%clk 0:01:05]}  f5 {[%clk 0:00:51]} 28. Rxd4 {[%clk 0:00:59]}  Nf7 {[%clk 0:00:51]} 29. Rc4 {[%clk 0:00:44]}  Nxh6 {[%clk 0:00:43]} 30. Qxh6 {[%clk 0:00:42]}  Bg7 {[%clk 0:00:44]} 31. Qh4 {[%clk 0:00:37]}  Rf7 {[%clk 0:00:18]} 32. Rxb4 {[%clk 0:00:32]}  Qd8 {[%clk 0:00:17]} 33. Qc4 {[%clk 0:00:27]}  Kh8 {[%clk 0:00:16]} 34. h4 {[%clk 0:00:26]}  Ra7 {[%clk 0:00:16]} 35. Nf4 {[%clk 0:00:24]}  Rc7 {[%clk 0:00:14]} 36. Qa6 {[%clk 0:00:21]}  Rxc2 {[%clk 0:00:13]} 37. Qa7 {[%clk 0:00:12]}  Qe7 {[%clk 0:00:07]} 38. Rb7 {[%clk 0:00:12]}  Qe5 {[%clk 0:00:06]} 39. h5 {[%clk 0:00:10]}  g5 {[%clk 0:00:06]} 40. h6 {[%clk 0:00:10]}  gxf4 {[%clk 0:00:04]} 41. Rxg7 {[%clk 0:00:10]}  fxg3+ {[%clk 0:00:04]} 42. Kh3 {[%clk 0:00:11]}  Qf6 {[%clk 0:00:02]} 43. Rxh7+ {[%clk 0:00:09]}  Kg8 {[%clk 0:00:02]} 44. Bd5+ {[%clk 0:00:10]}  Re6 {[%clk 0:00:01]} 45. Bxe6+ {[%clk 0:00:09]}  Qxe6 {[%clk 0:00:01]} 46. Qg7# {[%clk 0:00:08]} 1-0


[Site "https://www.chess.com"]